[Event "GM ZIA Smirity-A 2025"]
[Site "Dhaka"]
[Date "2025.02.18"]
[Round "3.8"]
[White "Wadifa, Ahmed"]
[Black "Abrar, Reazul Ahnaf Mohamma"]
[Result "1-0"]
[Annotator "NA"]
[ECO "C92"]
[WhiteElo "2053"]
[BlackElo "1771"]
[PlyCount "111"]
[EventDate "2025.02.17"]
[EventType "swiss"]
[EventCountry "BAN"]
[SourceTitle "playchess.com"]
[Source "ChessBase"]
[SourceQuality "1"]
[TimeControl "5400+30"]

1. e4 {[%emt 0:00:03]} e5 {[%emt 0:12:44]} 2. Nf3 {[%emt 0:00:08]} Nc6 {[%emt 0:00:17]} 3. Bb5 {[%emt 0:00:05]} a6 {[%emt 0:00:06]} 4. Ba4 {[%emt 0:00:04]} Nf6 {[%emt 0:00:05]} 5. O-O {[%emt 0:00:23]} Be7 {[%emt 0:00:04]} 6. Re1 {[%emt 0:00:08]} b5 {[%emt 0:00:09]} 7. Bb3 {[%emt 0:00:05]} d6 {[%emt 0:00:06]} 8. c3 {[%emt 0:00:07]} O-O {[%emt 0:00:05]} 9. h3 {[%emt 0:00:04]} Bb7 {[%emt 0:00:07]} 10. d4 {[%emt 0:01:29]} Re8 {[%emt 0:00:35]} 11. Nbd2 {[%emt 0:02:33]} Bf8 {[%emt 0:01:54]} 12. Bc2 {[%emt 0:04:42]} g6 {[%emt 0:02:46]} 13. a4 {[%emt 0:00:42]} Bg7 {[%emt 0:01:33]} 14. Nf1 {[%emt 0:10:47]} exd4 {[%emt 0:03:14]} 15. cxd4 {[%emt 0:00:09]} Nb4 {[%emt 0:00:49]} 16. d5 {[%emt 0:05:51]} c6 {[%emt 0:02:47]} 17. dxc6 {[%emt 0:08:44]} Bxc6 {[%emt 0:01:21]} 18. axb5 {[%emt 0:00:43]} Nxc2 {[%emt 0:02:36]} 19. Qxc2 {[%emt 0:00:56]} Bxe4 {[%emt 0:00:13]} 20. Qb3 {[%emt 0:03:53]} Qb6 {[%emt 0:02:59]} 21. Bf4 {[%emt 0:22:23]} axb5 {[%emt 0:02:35]} 22. Rxa8 {[%emt 0:00:19]} Bxa8 {[%emt 0:03:00]} 23. Rd1 {[%emt 0:08:22]} d5 {[%emt 0:06:01]} 24. Be3 {[%emt 0:01:13]} Qb7 {[%emt 0:02:17]} 25. Nd4 {[%emt 0:03:30]} b4 {[%emt 0:03:27]} 26. Nd2 {[%emt 0:03:20]} Ne4 {[%emt 0:03:41]} 27. Qa4 {[%emt 0:02:59]} Rc8 {[%emt 0:02:08]} 28. N2b3 {[%emt 0:04:18]} Bf8 {[%emt 0:06:15]} 29. Ra1 {[%emt 0:05:29]} Nc5 {[%emt 0:01:35]} 30. Nxc5 {[%emt 0:00:02]} Bxc5 {[%emt 0:00:12]} 31. Qd1 {[%emt 0:01:19]} Qe7 {[%emt 0:02:30]} 32. Rc1 {[%emt 0:03:25]} Bb7 {[%emt 0:01:24]} 33. Qd2 {[%emt 0:01:34]} Qe5 {[%emt 0:07:38]} 34. Qd3 {[%emt 0:04:02]} Qf6 {[%emt 0:12:40]} 35. Ra1 {[%emt 0:01:18]} Bb6 {[%emt 0:05:15]} 36. b3 {[%emt 0:02:46]} Rc3 {[%emt 0:03:41]} 37. Qd1 {[%emt 0:00:01]} Qh4 {[%emt 0:03:43]} 38. Ra4 {[%emt 0:00:47]} Qe7 {[%emt 0:02:22]} 39. Nb5 {[%emt 0:00:44]} Rc6 {[%emt 0:00:57]} 40. Nd4 {[%emt 0:00:06]} Rc8 {[%emt 0:03:28]} 41. Nf5 {[%emt 0:00:32]} gxf5 {[%emt 0:00:48]} 42. Bxb6 {[%emt 0:00:05]} Qf6 {[%emt 0:00:42]} 43. Bd4 {[%emt 0:00:10]} Qd6 {[%emt 0:00:33]} 44. Qd2 {[%emt 0:00:23]} f4 {[%emt 0:00:33]} 45. Rxb4 {[%emt 0:00:19]} Bc6 {[%emt 0:00:29]} 46. Bb2 {[%emt 0:00:49]} f6 {[%emt 0:00:33]} 47. Rxf4 {[%emt 0:00:14]} Rf8 {[%emt 0:00:12]} 48. Rg4+ {[%emt 0:01:01]} Kh8 {[%emt 0:00:06]} 49. Qh6 {[%emt 0:00:29]} Qe7 {[%emt 0:00:06]} 50. Qc1 {[%emt 0:00:48]} Bd7 {[%emt 0:00:32]} 51. Rg3 {[%emt 0:00:37]} Re8 {[%emt 0:00:41]} 52. Qf4 {[%emt 0:00:20]} Rf8 {[%emt 0:00:31]} 53. Re3 {[%emt 0:00:17]} Qg7 {[%emt 0:00:31]} 54. Qd6 {[%emt 0:00:20]} Bf5 {[%emt 0:01:10]} 55. Rf3 {[%emt 0:01:19]} Qg6 {[%emt 0:00:41]} 56. Qxf8+ {[%emt 0:00:08]} 1-0

[Event "GM ZIA Smirity-A 2025"]
[Site "Dhaka"]
[Date "2025.02.18"]
[Round "3.9"]
[White "Chowdhury, Sohel"]
[Black "Md Nasir Uddin"]
[Result "1/2-1/2"]
[Annotator "NA"]
[ECO "C42"]
[WhiteElo "2018"]
[BlackElo "2010"]
[PlyCount "77"]
[EventDate "2025.02.17"]
[EventType "swiss"]
[EventCountry "BAN"]
[SourceTitle "playchess.com"]
[Source "ChessBase"]
[SourceQuality "1"]
[TimeControl "5400+30"]

1. e4 {[%emt 0:00:19]} e5 {[%emt 0:02:06]} 2. Nf3 {[%emt 0:00:06]} Nf6 {[%emt 0:00:28]} 3. Nxe5 {[%emt 0:01:39]} d6 {[%emt 0:01:05]} 4. Nf3 {[%emt 0:00:10]} Nxe4 {[%emt 0:00:25]} 5. Nc3 {[%emt 0:00:16]} Nxc3 {[%emt 0:01:32]} 6. dxc3 {[%emt 0:00:03]} Be7 {[%emt 0:00:15]} 7. Bf4 {[%emt 0:01:26]} O-O {[%emt 0:00:28]} 8. Qd2 {[%emt 0:00:13]} Bf6 {[%emt 0:01:43]} 9. O-O-O {[%emt 0:00:29]} Nc6 {[%emt 0:00:44]} 10. Kb1 {[%emt 0:01:00]} Bf5 {[%emt 0:00:21]} 11. h3 {[%emt 0:03:14]} a5 {[%emt 0:02:05]} 12. Rg1 {[%emt 0:04:22]} a4 {[%emt 0:02:24]} 13. a3 {[%emt 0:00:05]} Na5 {[%emt 0:07:58]} 14. Bd3 {[%emt 0:05:14]} Qc8 {[%emt 0:02:29]} 15. g4 {[%emt 0:00:55]} Bxd3 {[%emt 0:01:00]} 16. Qxd3 {[%emt 0:00:38]} g6 {[%emt 0:00:11]} 17. h4 {[%emt 0:02:00]} Qe6 {[%emt 0:07:25]} 18. g5 {[%emt 0:07:08]} Bg7 {[%emt 0:00:28]} 19. Rde1 {[%emt 0:02:34]} Qc4 {[%emt 0:02:03]} 20. Re4 {[%emt 0:00:49]} Qxd3 {[%emt 0:05:24]} 21. cxd3 {[%emt 0:00:31]} Nb3 {[%emt 0:00:44]} 22. d4 {[%emt 0:02:56]} Rfe8 {[%emt 0:00:11]} 23. Rge1 {[%emt 0:00:57]} Rxe4 {[%emt 0:00:47]} 24. Rxe4 {[%emt 0:00:03]} Kf8 {[%emt 0:00:00]} 25. Be3 {[%emt 0:13:14]} d5 {[%emt 0:08:21]} 26. Rg4 {[%emt 0:02:04]} Re8 {[%emt 0:00:11]} 27. Kc2 {[%emt 0:02:17]} Re6 {[%emt 0:00:27]} 28. Nd2 {[%emt 0:06:52]} Na5 {[%emt 0:00:15]} 29. h5 {[%emt 0:08:03]} Ke8 {[%emt 0:01:25]} 30. h6 {[%emt 0:00:36]} Bf8 {[%emt 0:00:12]} 31. Kd3 {[%emt 0:01:50]} Rb6 {[%emt 0:00:47]} 32. Kc2 {[%emt 0:00:18]} Re6 {[%emt 0:00:11]} 33. Rg1 {[%emt 0:00:25]} Kd7 {[%emt 0:00:58]} 34. Rg3 {[%emt 0:01:23]} Bd6 {[%emt 0:01:22]} 35. Rf3 {[%emt 0:00:33]} Ke8 {[%emt 0:01:08]} 36. Kd3 {[%emt 0:00:12]} b5 {[%emt 0:00:11]} 37. Rh3 {[%emt 0:03:50]} Nc6 {[%emt 0:00:52]} 38. Nf3 {[%emt 0:07:18]} Na5 {[%emt 0:03:33]} 39. Nd2 {[%emt 0:00:09]} 1/2-1/2

[Event "GM ZIA Smirity-A 2025"]
[Site "Dhaka"]
[Date "2025.02.18"]
[Round "3.10"]
[White "Rayan Rashid Mugdho"]
[Black "Rahman, Syed Mahfuzur"]
[Result "0-1"]
[Annotator "NA"]
[ECO "B01"]
[WhiteElo "1861"]
[BlackElo "2113"]
[PlyCount "94"]
[EventDate "2025.02.17"]
[EventType "swiss"]
[EventCountry "BAN"]
[SourceTitle "playchess.com"]
[Source "ChessBase"]
[SourceQuality "1"]
[TimeControl "5400+30"]

1. e4 {[%emt 0:00:08]} d5 {[%emt 0:13:13]} 2. exd5 {[%emt 0:00:44]} Qxd5 {[%emt 0:00:01]} 3. Nc3 {[%emt 0:01:30]} Qa5 {[%emt 0:00:03]} 4. d4 {[%emt 0:00:58]} c6 {[%emt 0:00:02]} 5. Nf3 {[%emt 0:00:16]} Nf6 {[%emt 0:00:03]} 6. Bc4 {[%emt 0:02:16]} Bf5 {[%emt 0:01:04]} 7. O-O {[%emt 0:01:01]} Nbd7 {[%emt 0:00:30]} 8. Re1 {[%emt 0:02:40]} e6 {[%emt 0:00:03]} 9. Bf4 {[%emt 0:04:17]} Be7 {[%emt 0:03:25]} 10. Ne5 {[%emt 0:03:12]} O-O {[%emt 0:01:57]} 11. Bd3 {[%emt 0:05:14]} Bg6 {[%emt 0:01:24]} 12. Qe2 {[%emt 0:06:00]} Qb6 {[%emt 0:10:31]} 13. Bxg6 {[%emt 0:09:34]} hxg6 {[%emt 0:00:08]} 14. Nxd7 {[%emt 0:01:38]} Nxd7 {[%emt 0:00:05]} 15. d5 {[%emt 0:00:49]} e5 {[%emt 0:06:52]} 16. dxc6 {[%emt 0:03:56]} bxc6 {[%emt 0:00:41]} 17. Bxe5 {[%emt 0:06:51]} Nxe5 {[%emt 0:00:16]} 18. Qxe5 {[%emt 0:00:13]} Bf6 {[%emt 0:00:04]} 19. Na4 {[%emt 0:01:50]} Bxe5 {[%emt 0:07:31]} 20. Nxb6 {[%emt 0:00:18]} Bxb2 {[%emt 0:01:03]} 21. Rab1 {[%emt 0:07:19]} axb6 {[%emt 0:01:24]} 22. Rxb2 {[%emt 0:00:10]} b5 {[%emt 0:00:02]} 23. f3 {[%emt 0:00:43]} Ra4 {[%emt 0:03:40]} 24. c3 {[%emt 0:02:05]} Rd8 {[%emt 0:10:30]} 25. Kf2 {[%emt 0:04:23]} Kf8 {[%emt 0:03:43]} 26. Ree2 {[%emt 0:03:21]} g5 {[%emt 0:04:51]} 27. Rbd2 {[%emt 0:03:49]} Rxd2 {[%emt 0:03:09]} 28. Rxd2 {[%emt 0:00:02]} Rc4 {[%emt 0:02:33]} 29. Rd3 {[%emt 0:01:10]} Ke7 {[%emt 0:01:51]} 30. Ke3 {[%emt 0:01:04]} Ke6 {[%emt 0:00:11]} 31. Kd2 {[%emt 0:05:09]} Ra4 {[%emt 0:00:41]} 32. Re3+ {[%emt 0:06:11]} Kd6 {[%emt 0:03:47]} 33. Rd3+ {[%emt 0:01:05]} Kc7 {[%emt 0:00:04]} 34. Re3 {[%emt 0:01:00]} Rxa2+ {[%emt 0:00:02]} 35. Ke1 {[%emt 0:00:48]} Kd6 {[%emt 0:04:38]} 36. Kf1 {[%emt 0:01:09]} Rc2 {[%emt 0:00:09]} 37. Kg1 {[%emt 0:01:59]} c5 {[%emt 0:01:08]} 38. Rd3+ {[%emt 0:00:57]} Kc6 {[%emt 0:00:30]} 39. Re3 {[%emt 0:00:26]} f6 {[%emt 0:01:11]} 40. g3 {[%emt 0:01:22]} b4 {[%emt 0:00:26]} 41. cxb4 {[%emt 0:00:33]} cxb4 {[%emt 0:00:02]} 42. h4 {[%emt 0:00:36]} gxh4 {[%emt 0:00:44]} 43. gxh4 {[%emt 0:00:23]} Kd5 {[%emt 0:00:22]} 44. h5 {[%emt 0:00:23]} Kd4 {[%emt 0:02:40]} 45. Re7 {[%emt 0:00:38]} b3 {[%emt 0:00:08]} 46. Rd7+ {[%emt 0:00:57]} Ke5 {[%emt 0:00:23]} 47. Rxg7 {[%emt 0:01:00]} b2 {[%emt 0:00:02]} 0-1

[Event "GM ZIA Smirity-A 2025"]
[Site "Dhaka"]
[Date "2025.02.18"]
[Round "3.11"]
[White "Sagor"]
[Black "Tashriq Saihan, Shan"]
[Result "0-1"]
[Annotator "NA"]
[ECO "C84"]
[WhiteElo "2001"]
[BlackElo "1974"]
[PlyCount "92"]
[EventDate "2025.02.17"]
[EventType "swiss"]
[EventCountry "BAN"]
[SourceTitle "playchess.com"]
[Source "ChessBase"]
[SourceQuality "1"]
[TimeControl "5400+30"]

1. e4 {[%emt 0:00:30]} e5 {[%emt 0:05:21]} 2. Nf3 {[%emt 0:00:14]} Nc6 {[%emt 1:26:09]} 3. Bb5 {[%emt 0:00:10]} a6 {[%emt 0:00:00]} 4. Ba4 {[%emt 0:00:06]} Nf6 {[%emt 0:00:00]} 5. O-O {[%emt 0:00:09]} Be7 {[%emt 0:00:00]} 6. d4 {[%emt 1:32:21]} exd4 {[%emt 0:00:00]} 7. e5 {[%emt 0:00:00]} Ne4 {[%emt 0:00:00]} 8. Nxd4 {[%emt 0:00:00]} Nxd4 {[%emt 0:00:00]} 9. Qxd4 {[%emt 0:00:00]} Nc5 {[%emt 0:00:00]} 10. Nc3 {[%emt 0:00:00]} Nxa4 {[%emt 0:00:00]} 11. Qxa4 {[%emt 0:00:00]} O-O {[%emt 0:00:00]} 12. Be3 {[%emt 0:00:00]} d5 {[%emt 0:00:00]} 13. Rad1 {[%emt 0:00:00]} c6 {[%emt 0:00:00]} 14. Ne2 {[%emt 0:00:00]} Qc7 {[%emt 0:00:00]} 15. f4 {[%emt 0:00:00]} Be6 {[%emt 0:00:00]} 16. c3 {[%emt 0:00:00]} Bg4 {[%emt 0:00:00]} 17. Qc2 {[%emt 0:00:00]} f6 {[%emt 0:00:00]} 18. Bd4 {[%emt 0:00:00]} fxe5 {[%emt 0:00:00]} 19. Bxe5 {[%emt 0:00:00]} Bd6 {[%emt 0:00:00]} 20. Bxd6 {[%emt 0:00:00]} Qxd6 {[%emt 0:00:00]} 21. g3 {[%emt 0:00:00]} Rae8 {[%emt 0:00:00]} 22. Rd2 {[%emt 0:00:00]} Re3 {[%emt 0:00:00]} 23. Kg2 {[%emt 0:00:00]} Qd7 {[%emt 0:00:00]} 24. Ng1 {[%emt 0:00:00]} Rfe8 {[%emt 0:00:00]} 25. h3 {[%emt 0:00:00]} Bf5 {[%emt 0:00:00]} 26. Qd1 {[%emt 0:00:00]} R8e6 {[%emt 0:00:00]} 27. c4 {[%emt 0:00:00]} Qe7 {[%emt 0:00:00]} 28. cxd5 {[%emt 0:00:00]} cxd5 {[%emt 0:00:00]} 29. Nf3 {[%emt 0:00:00]} Be4 {[%emt 0:00:00]} 30. Kh2 {[%emt 0:00:00]} Bxf3 {[%emt 0:00:00]} 31. Rxf3 {[%emt 0:00:00]} d4 {[%emt 0:00:00]} 32. Rff2 {[%emt 0:00:00]} Re1 {[%emt 0:00:00]} 33. Qf3 {[%emt 0:00:44]} R6e4 {[%emt 0:00:00]} 34. Qb3+ {[%emt 0:00:31]} Qf7 {[%emt 0:00:00]} 35. Qc2 {[%emt 0:03:50]} Qd5 {[%emt 0:00:00]} 36. Rg2 {[%emt 0:02:13]} h6 {[%emt 0:00:00]} 37. Qc8+ {[%emt 0:00:15]} Kh7 {[%emt 0:00:00]} 38. Qc2 {[%emt 0:00:17]} Qc6 {[%emt 0:00:00]} 39. Qd3 {[%emt 0:01:25]} Qc1 {[%emt 0:00:00]} 40. Rgf2 {[%emt 0:01:48]} Kh8 {[%emt 0:00:00]} 41. Qc2 {[%emt 0:03:13]} Rh1+ {[%emt 0:00:00]} 42. Kg2 {[%emt 0:00:01]} Qg1+ {[%emt 0:00:00]} 43. Kf3 {[%emt 0:00:18]} Re3+ {[%emt 0:00:00]} 44. Kg4 {[%emt 0:00:14]} Qxg3+ {[%emt 0:00:00]} 45. Kf5 {[%emt 0:00:04]} Qxh3+ {[%emt 0:00:00]} 46. Kg6 {[%emt 0:00:19]} Qe6# {[%emt 0:00:00]} 0-1

[Event "GM ZIA Smirity-A 2025"]
[Site "Dhaka"]
[Date "2025.02.18"]
[Round "3.12"]
[White "Khan, Nazrana"]
[Black "Aiyan, Rahman"]
[Result "1/2-1/2"]
[Annotator "NA"]
[ECO "E44"]
[WhiteElo "1840"]
[BlackElo "1827"]
[PlyCount "87"]
[EventDate "2025.02.17"]
[EventType "swiss"]
[EventCountry "BAN"]
[SourceTitle "playchess.com"]
[Source "ChessBase"]
[SourceQuality "1"]
[TimeControl "5400+30"]

1. d4 {[%emt 0:00:03]} Nf6 {[%emt 0:00:07]} 2. c4 {[%emt 0:00:06]} e6 {[%emt 0:00:04]} 3. Nc3 {[%emt 0:00:10]} Bb4 {[%emt 0:00:03]} 4. e3 {[%emt 0:00:11]} b6 {[%emt 0:04:15]} 5. Nge2 {[%emt 0:02:18]} Bb7 {[%emt 0:02:53]} 6. a3 {[%emt 0:03:17]} Be7 {[%emt 0:14:41]} 7. Ng3 {[%emt 1:27:55]} d5 {[%emt 0:01:44]} 8. cxd5 {[%emt 0:00:00]} exd5 {[%emt 0:04:09]} 9. Bb5+ {[%emt 0:00:00]} c6 {[%emt 0:00:18]} 10. Bd3 {[%emt 0:00:00]} O-O {[%emt 0:01:32]} 11. O-O {[%emt 0:00:00]} c5 {[%emt 0:03:23]} 12. dxc5 {[%emt 0:00:00]} bxc5 {[%emt 0:02:16]} 13. e4 {[%emt 0:00:00]} c4 {[%emt 0:11:37]} 14. Bb1 {[%emt 0:00:00]} d4 {[%emt 0:07:38]} 15. Nce2 {[%emt 0:00:00]} d3 {[%emt 0:06:48]} 16. Nc3 {[%emt 0:00:00]} Nbd7 {[%emt 0:05:10]} 17. b3 {[%emt 0:00:00]} Bc5 {[%emt 0:15:10]} 18. bxc4 {[%emt 0:00:00]} Ne5 {[%emt 0:17:42]} 19. Nd5 {[%emt 0:00:00]} Nxc4 {[%emt 0:00:00]} 20. Qxd3 {[%emt 0:00:00]} Bxd5 {[%emt 0:00:00]} 21. exd5 {[%emt 0:00:00]} Qxd5 {[%emt 0:00:00]} 22. Ne4 {[%emt 0:00:00]} Qxe4 {[%emt 0:00:45]} 23. Qxe4 {[%emt 0:00:00]} Nxe4 {[%emt 0:01:45]} 24. Bxe4 {[%emt 0:00:00]} Rae8 {[%emt 0:00:00]} 25. Bd5 {[%emt 0:00:00]} Nb6 {[%emt 0:00:00]} 26. Bf3 {[%emt 0:00:00]} Nc4 {[%emt 0:00:00]} 27. Bf4 {[%emt 0:00:00]} Nxa3 {[%emt 0:01:22]} 28. Rfc1 {[%emt 0:00:00]} Bb4 {[%emt 0:00:18]} 29. Rc7 {[%emt 0:00:00]} a5 {[%emt 0:00:03]} 30. h3 {[%emt 0:00:00]} Nb5 {[%emt 0:00:32]} 31. Rc4 {[%emt 0:00:00]} Rc8 {[%emt 0:01:07]} 32. Re4 {[%emt 0:04:32]} Nc3 {[%emt 0:00:08]} 33. Rd4 {[%emt 0:01:48]} Rfe8 {[%emt 0:00:45]} 34. Kf1 {[%emt 0:01:21]} Red8 {[%emt 0:00:37]} 35. Rxd8+ {[%emt 0:01:01]} Rxd8 {[%emt 0:00:01]} 36. Bc7 {[%emt 0:00:26]} Rd7 {[%emt 0:00:05]} 37. Bb6 {[%emt 0:01:45]} a4 {[%emt 0:00:24]} 38. Be3 {[%emt 0:01:58]} h6 {[%emt 0:00:42]} 39. Bc6 {[%emt 0:00:23]} Rd6 {[%emt 0:00:00]} 40. Bxa4 {[%emt 0:01:22]} Ra6 {[%emt 0:00:05]} 41. Bd2 {[%emt 0:00:27]} g6 {[%emt 0:00:53]} 42. Bxc3 {[%emt 0:00:14]} Bxc3 {[%emt 0:00:02]} 43. Ra2 {[%emt 0:00:21]} Kg7 {[%emt 0:00:06]} 44. g3 {[%emt 0:00:23]} 1/2-1/2

[Event "GM ZIA Smirity-A 2025"]
[Site "Dhaka"]
[Date "2025.02.18"]
[Round "3.13"]
[White "Neelava, Choudhury"]
[Black "Tahmidul, Haque"]
[Result "0-1"]
[Annotator "NA"]
[ECO "C56"]
[WhiteElo "1784"]
[BlackElo "2016"]
[PlyCount "44"]
[EventDate "2025.02.17"]
[EventType "swiss"]
[EventCountry "BAN"]
[SourceTitle "playchess.com"]
[Source "ChessBase"]
[SourceQuality "1"]
[TimeControl "5400+30"]

1. e4 {[%emt 0:22:58]} e5 {[%emt 0:00:08]} 2. Nf3 {[%emt 0:00:05]} Nc6 {[%emt 0:00:06]} 3. Bc4 {[%emt 0:00:19]} Nf6 {[%emt 0:00:09]} 4. O-O {[%emt 0:00:51]} Nxe4 {[%emt 0:00:57]} 5. d4 {[%emt 0:00:52]} exd4 {[%emt 0:08:03]} 6. Re1 {[%emt 0:04:30]} d5 {[%emt 0:00:08]} 7. Bxd5 {[%emt 0:00:57]} Qxd5 {[%emt 0:00:06]} 8. Nc3 {[%emt 0:01:30]} Qa5 {[%emt 1:24:53]} 9. Nxe4 {[%emt 0:01:14]} Be6 {[%emt 0:00:00]} 10. Nxd4 {[%emt 1:02:14]} Nxd4 {[%emt 0:00:00]} 11. c3 {[%emt 0:00:00]} Nc6 {[%emt 0:00:00]} 12. Ng5 {[%emt 0:00:00]} Be7 {[%emt 0:00:00]} 13. Nxe6 {[%emt 0:00:00]} fxe6 {[%emt 0:00:00]} 14. Qb3 {[%emt 0:00:00]} O-O-O {[%emt 0:00:00]} 15. Qxe6+ {[%emt 0:00:00]} Kb8 {[%emt 0:00:00]} 16. Be3 {[%emt 0:00:00]} Qd5 {[%emt 0:00:00]} 17. Qg4 {[%emt 0:00:00]} h5 {[%emt 0:00:00]} 18. Qe2 {[%emt 0:00:00]} Bd6 {[%emt 0:00:00]} 19. Rad1 {[%emt 0:00:00]} Qe5 {[%emt 0:00:00]} 20. g3 {[%emt 0:00:00]} h4 {[%emt 0:00:00]} 21. Rf1 {[%emt 0:00:00]} Rde8 {[%emt 0:00:00]} 22. Qd3 {[%emt 0:00:00]} hxg3 {[%emt 0:00:00]} 0-1

[Event "GM ZIA Smirity-A 2025"]
[Site "Dhaka"]
[Date "2025.02.18"]
[Round "3.14"]
[White "Islam, M.M. Zahirul"]
[Black "Masum, Hossain"]
[Result "1-0"]
[Annotator "NA"]
[ECO "D44"]
[WhiteElo "1912"]
[BlackElo "2011"]
[PlyCount "64"]
[EventDate "2025.02.17"]
[EventType "swiss"]
[EventCountry "BAN"]
[SourceTitle "playchess.com"]
[Source "ChessBase"]
[SourceQuality "1"]
[TimeControl "5400+30"]

1. d4 {[%emt 0:18:17]} d5 {[%emt 0:02:00]} 2. c4 {[%emt 0:00:35]} c6 {[%emt 0:00:09]} 3. Nf3 {[%emt 0:00:09]} Nf6 {[%emt 0:00:04]} 4. Nc3 {[%emt 0:00:12]} e6 {[%emt 0:00:10]} 5. Bg5 {[%emt 0:00:14]} dxc4 {[%emt 0:00:03]} 6. e4 {[%emt 0:00:30]} b5 {[%emt 0:00:02]} 7. e5 {[%emt 0:00:20]} h6 {[%emt 0:00:03]} 8. Bh4 {[%emt 0:00:13]} g5 {[%emt 0:00:02]} 9. Nxg5 {[%emt 0:00:11]} hxg5 {[%emt 0:00:03]} 10. Bxg5 {[%emt 0:00:04]} Nbd7 {[%emt 0:00:09]} 11. g3 {[%emt 0:00:52]} Bb7 {[%emt 1:33:15]} 12. Bg2 {[%emt 1:14:53]} Rg8 {[%emt 0:00:30]} 13. Bh4 {[%emt 0:00:30]} Rg4 {[%emt 0:00:00]} 14. exf6 {[%emt 0:00:00]} Rxh4 {[%emt 0:00:00]} 15. gxh4 {[%emt 0:00:00]} Qb6 {[%emt 0:00:00]} 16. O-O {[%emt 0:00:00]} O-O-O {[%emt 0:00:00]} 17. a4 {[%emt 0:00:00]} Bd6 {[%emt 0:00:00]} 18. a5 {[%emt 0:00:00]} Qc7 {[%emt 0:00:00]} 19. h3 {[%emt 0:00:00]} a6 {[%emt 0:00:00]} 20. Qf3 {[%emt 0:00:00]} Rg8 {[%emt 0:00:00]} 21. Kh1 {[%emt 0:00:00]} Kb8 {[%emt 0:00:00]} 22. Rfd1 {[%emt 0:00:00]} Rg6 {[%emt 0:00:00]} 23. Ne4 {[%emt 0:00:00]} c5 {[%emt 0:00:00]} 24. dxc5 {[%emt 0:00:00]} Nxc5 {[%emt 0:00:00]} 25. Rxd6 {[%emt 0:00:00]} Qxd6 {[%emt 0:00:00]} 26. Nxd6 {[%emt 0:00:00]} Bxf3 {[%emt 0:00:00]} 27. Bxf3 {[%emt 0:00:00]} Rxf6 {[%emt 0:00:00]} 28. Kg2 {[%emt 0:00:00]} e5 {[%emt 0:00:00]} 29. Ne4 {[%emt 0:00:00]} Nxe4 {[%emt 0:00:00]} 30. Bxe4 {[%emt 0:00:00]} Rf4 {[%emt 0:00:00]} 31. Bd5 {[%emt 0:00:00]} f6 {[%emt 0:00:00]} 32. Kg3 {[%emt 0:00:00]} Rd4 {[%emt 0:00:00]} 1-0

[Event "GM ZIA Smirity-A 2025"]
[Site "Dhaka"]
[Date "2025.02.18"]
[Round "3.15"]
[White "Safayat, Kibria Azaan"]
[Black "Hamid, Rani"]
[Result "1/2-1/2"]
[Annotator "NA"]
[ECO "B43"]
[WhiteElo "1850"]
[BlackElo "1913"]
[PlyCount "123"]
[EventDate "2025.02.17"]
[EventType "swiss"]
[EventCountry "BAN"]
[SourceTitle "playchess.com"]
[Source "ChessBase"]
[SourceQuality "1"]
[TimeControl "5400+30"]

1. e4 {[%emt 1:31:00]} c5 {[%emt 1:31:00]} 2. Nf3 {[%emt 0:00:30]} e6 {[%emt 0:00:30]} 3. d4 {[%emt 0:00:30]} cxd4 {[%emt 0:00:30]} 4. Nxd4 {[%emt 0:00:30]} a6 {[%emt 0:00:30]} 5. Nc3 {[%emt 0:00:30]} Qc7 {[%emt 0:00:30]} 6. Bd3 {[%emt 0:00:30]} Nf6 {[%emt 0:00:30]} 7. Be3 {[%emt 0:00:30]} Bb4 {[%emt 0:00:30]} 8. Nde2 {[%emt 0:00:30]} d5 {[%emt 0:00:30]} 9. exd5 {[%emt 0:00:30]} Nxd5 {[%emt 0:00:30]} 10. Bd2 {[%emt 0:00:30]} Nxc3 {[%emt 0:00:30]} 11. Bxc3 {[%emt 0:00:30]} Bxc3+ {[%emt 0:00:30]} 12. Nxc3 {[%emt 0:00:30]} Qe5+ {[%emt 0:00:30]} 13. Qe2 {[%emt 0:00:30]} Nc6 {[%emt 0:00:30]} 14. O-O-O {[%emt 0:00:30]} O-O {[%emt 0:00:30]} 15. Qe4 {[%emt 0:00:30]} f5 {[%emt 0:00:30]} 16. Qxe5 {[%emt 0:00:30]} Nxe5 {[%emt 0:00:30]} 17. Rhe1 {[%emt 0:00:30]} Nxd3+ {[%emt 0:00:30]} 18. Rxd3 {[%emt 0:00:30]} b5 {[%emt 0:00:30]} 19. f4 {[%emt 0:00:30]} Ra7 {[%emt 0:00:30]} 20. g3 {[%emt 0:00:30]} Rc7 {[%emt 0:00:30]} 21. Ne2 {[%emt 0:00:30]} Re8 {[%emt 0:00:30]} 22. Nd4 {[%emt 0:00:30]} Kf7 {[%emt 0:00:30]} 23. Rde3 {[%emt 0:00:30]} g6 {[%emt 0:00:30]} 24. Nf3 {[%emt 0:00:30]} h6 {[%emt 0:00:30]} 25. g4 {[%emt 0:00:30]} Rd8 {[%emt 0:00:30]} 26. gxf5 {[%emt 0:00:30]} exf5 {[%emt 0:00:30]} 27. Ne5+ {[%emt 0:00:30]} Kf6 {[%emt 0:00:30]} 28. Rg3 {[%emt 0:00:30]} Rg7 {[%emt 0:00:30]} 29. Reg1 {[%emt 0:00:30]} g5 {[%emt 0:00:30]} 30. Rd3 {[%emt 0:00:30]} Rxd3 {[%emt 0:00:30]} 31. Nxd3 {[%emt 0:00:30]} Re7 {[%emt 0:00:30]} 32. Kd2 {[%emt 0:00:30]} Bb7 {[%emt 0:00:30]} 33. Re1 {[%emt 0:00:30]} Be4 {[%emt 0:00:30]} 34. Re3 {[%emt 0:00:30]} Rd7 {[%emt 0:00:30]} 35. Ke2 {[%emt 0:00:30]} Rc7 {[%emt 0:00:30]} 36. c3 {[%emt 0:00:30]} a5 {[%emt 0:00:30]} 37. Rh3 {[%emt 0:00:30]} Bxd3+ {[%emt 0:00:30]} 38. Rxd3 {[%emt 0:00:30]} gxf4 {[%emt 0:00:30]} 39. Kf3 {[%emt 0:00:30]} Ke5 {[%emt 0:00:30]} 40. Rd4 {[%emt 0:00:30]} b4 {[%emt 0:00:30]} 41. Rd3 {[%emt 0:00:30]} bxc3 {[%emt 0:00:30]} 42. Rxc3 {[%emt 0:00:30]} Rxc3+ {[%emt 0:00:30]} 43. bxc3 {[%emt 0:00:30]} a4 {[%emt 0:00:30]} 44. h4 {[%emt 0:00:30]} a3 {[%emt 0:00:30]} 45. h5 {[%emt 0:00:30]} Kd5 {[%emt 0:00:30]} 46. Kxf4 {[%emt 0:00:30]} Kc4 {[%emt 0:00:30]} 47. Kxf5 {[%emt 0:00:30]} Kxc3 {[%emt 0:00:30]} 48. Kg6 {[%emt 0:00:30]} Kb2 {[%emt 0:00:30]} 49. Kxh6 {[%emt 0:00:30]} Kxa2 {[%emt 0:00:30]} 50. Kg7 {[%emt 0:00:30]} Kb1 {[%emt 0:00:30]} 51. h6 {[%emt 0:00:30]} a2 {[%emt 0:00:30]} 52. h7 {[%emt 0:00:30]} a1=Q+ 53. Kg8 {[%emt 0:00:30]} Qa8+ {[%emt 0:01:00]} 54. Kg7 {[%emt 0:00:30]} Qb7+ {[%emt 0:00:30]} 55. Kg8 {[%emt 0:00:30]} Qc8+ {[%emt 0:00:30]} 56. Kg7 {[%emt 0:00:30]} Qd7+ {[%emt 0:00:30]} 57. Kg8 {[%emt 0:00:30]} Qe8+ {[%emt 0:00:30]} 58. Kg7 {[%emt 0:00:30]} Qe7+ {[%emt 0:00:30]} 59. Kg8 {[%emt 0:00:30]} Qg5+ {[%emt 0:00:30]} 60. Kh8 {[%emt 0:00:30]} Qh6 {[%emt 0:00:30]} 61. Kg8 {[%emt 0:00:30]} Qg6+ {[%emt 0:00:30]} 62. Kh8 {[%emt 0:00:30]} 1/2-1/2